[Event "*** Titled Tuesday Blitz"]
[Site "Chess.com"]
[Date "2021.02.16"]
[Round "2"]
[White "Politov_Pavel"]
[Black "esrosenberg"]
[Result "1-0"]
[WhiteElo "2402"]
[BlackElo "2106"]
[TimeControl "180+1"]
[EndTime "10:19:55 PST"]
[Termination "Politov_Pavel won by checkmate"]

1. e4 {[%clk 0:03:00.9]} 1... e5 {[%clk 0:02:59.7]} 2. Nf3 {[%clk 0:03:00.1]}
2... Nc6 {[%clk 0:03:00]} 3. d4 {[%clk 0:02:59.7]} 3... exd4 {[%clk 0:02:59.9]}
4. Nxd4 {[%clk 0:03:00.4]} 4... Nf6 {[%clk 0:02:59.8]} 5. Nc3 {[%clk 0:03:00.3]}
5... Bb4 {[%clk 0:02:59.4]} 6. Nxc6 {[%clk 0:02:59.8]} 6... bxc6 {[%clk
0:02:58.5]} 7. Qd4 {[%clk 0:03:00.3]} 7... Qe7 {[%clk 0:02:48.7]} 8. f3 {[%clk
0:02:59.7]} 8... h6 {[%clk 0:02:46.5]} 9. Bf4 {[%clk 0:02:56.7]} 9... Bxc3+
{[%clk 0:02:31.7]} 10. Qxc3 {[%clk 0:02:56.2]} 10... O-O {[%clk 0:02:16.6]} 11.
O-O-O {[%clk 0:02:38.6]} 11... d6 {[%clk 0:01:55.6]} 12. Qxc6 {[%clk 0:02:34.6]}
12... Bd7 {[%clk 0:01:55.7]} 13. Qxc7 {[%clk 0:02:31]} 13... Rfc8 {[%clk
0:01:33.7]} 14. Qxd6 {[%clk 0:02:30.7]} 14... Qe8 {[%clk 0:01:33.9]} 15. Kb1
{[%clk 0:02:14.6]} 15... Ba4 {[%clk 0:01:21.5]} 16. b3 {[%clk 0:02:14.2]} 16...
Rd8 {[%clk 0:01:20.3]} 17. bxa4 {[%clk 0:01:46.6]} 17... Rxd6 {[%clk 0:01:09.5]}
18. Bxd6 {[%clk 0:01:47.5]} 18... Qxa4 {[%clk 0:01:05.6]} 19. Rd3 {[%clk
0:01:39.8]} 19... Rd8 {[%clk 0:00:57.6]} 20. e5 {[%clk 0:01:32]} 20... Ne8
{[%clk 0:00:44.2]} 21. Ra3 {[%clk 0:01:07.5]} 21... Rb8+ {[%clk 0:00:31.7]} 22.
Rb3 {[%clk 0:01:01.8]} 22... Rxb3+ {[%clk 0:00:27.2]} 23. axb3 {[%clk
0:01:02.7]} 23... Qd4 {[%clk 0:00:25]} 24. Bd3 {[%clk 0:00:51.6]} 24... Nxd6
{[%clk 0:00:24.1]} 25. exd6 {[%clk 0:00:52.5]} 25... Qxd6 {[%clk 0:00:24.7]} 26.
Re1 {[%clk 0:00:51]} 26... g6 {[%clk 0:00:23]} 27. g3 {[%clk 0:00:51]} 27... a5
{[%clk 0:00:21]} 28. Re4 {[%clk 0:00:45]} 28... Qc5 {[%clk 0:00:17.5]} 29. Bc4
{[%clk 0:00:39.2]} 29... Qg1+ {[%clk 0:00:17.3]} 30. Kb2 {[%clk 0:00:39]} 30...
Kf8 {[%clk 0:00:15.5]} 31. Re2 {[%clk 0:00:27.9]} 31... Qd4+ {[%clk 0:00:14.5]}
32. c3 {[%clk 0:00:27.3]} 32... Qf6 {[%clk 0:00:12.8]} 33. f4 {[%clk 0:00:25.9]}
33... Qb6 {[%clk 0:00:11.7]} 34. Kc2 {[%clk 0:00:24.8]} 34... Qc5 {[%clk
0:00:10.6]} 35. Re5 {[%clk 0:00:23.3]} 35... Qf2+ {[%clk 0:00:10.4]} 36. Re2
{[%clk 0:00:23.4]} 36... Qc5 {[%clk 0:00:11]} 37. Bd3 {[%clk 0:00:22.5]} 37...
Qa3 {[%clk 0:00:09.9]} 38. Bc4 {[%clk 0:00:21.2]} 38... Qa2+ {[%clk 0:00:09.8]}
39. Kd3 {[%clk 0:00:21]} 39... Qb1+ {[%clk 0:00:09.7]} 40. Kd4 {[%clk
0:00:19.4]} 40... Qd1+ {[%clk 0:00:09.2]} 41. Kc5 {[%clk 0:00:19.2]} 41... Qd7
{[%clk 0:00:07.6]} 42. Re5 {[%clk 0:00:17.1]} 42... Qc7+ {[%clk 0:00:07.6]} 43.
Kd4 {[%clk 0:00:17.4]} 43... Qb6+ {[%clk 0:00:07.3]} 44. Rc5 {[%clk 0:00:16.7]}
44... Qd6+ {[%clk 0:00:06.4]} 45. Bd5 {[%clk 0:00:16.4]} 45... Qf6+ {[%clk
0:00:05.3]} 46. Kc4 {[%clk 0:00:16.5]} 46... a4 {[%clk 0:00:04.7]} 47. Rc8+
{[%clk 0:00:16.1]} 47... Kg7 {[%clk 0:00:04.1]} 48. Rc7 {[%clk 0:00:16.7]} 48...
Qb6 {[%clk 0:00:03.2]} 49. Rxf7+ {[%clk 0:00:16.2]} 49... Kh8 {[%clk 0:00:04.1]}
50. bxa4 {[%clk 0:00:16.6]} 50... Qa6+ {[%clk 0:00:03.9]} 51. Kd4 {[%clk
0:00:15.7]} 51... Qb6+ {[%clk 0:00:04.4]} 52. Ke5 {[%clk 0:00:15.5]} 52... Qe3+
{[%clk 0:00:04.1]} 53. Kf6 {[%clk 0:00:15.4]} 53... Qxc3+ {[%clk 0:00:04.3]} 54.
Kxg6 {[%clk 0:00:15.5]} 54... Qd4 {[%clk 0:00:01.2]} 55. Rh7# {[%clk 0:00:14.8]}
1-0

[Event "*** Titled Tuesday Blitz"]
[Site "Chess.com"]
[Date "2021.02.16"]
[Round "2"]
[White "Lysiak_Poltorak"]
[Black "IsaacWiebe"]
[Result "1-0"]
[WhiteElo "2433"]
[BlackElo "2187"]
[TimeControl "180+1"]
[EndTime "10:19:56 PST"]
[Termination "Lysiak_Poltorak won on time"]

1. e4 {[%clk 0:03:00.9]} 1... e6 {[%clk 0:02:59.8]} 2. d4 {[%clk 0:03:00.1]}
2... d5 {[%clk 0:02:59.9]} 3. Bd3 {[%clk 0:03:00.2]} 3... dxe4 {[%clk
0:02:59.8]} 4. Bxe4 {[%clk 0:03:01.1]} 4... Nf6 {[%clk 0:03:00.3]} 5. Bf3 {[%clk
0:03:00.5]} 5... c5 {[%clk 0:03:00.9]} 6. Ne2 {[%clk 0:03:00.1]} 6... Nc6 {[%clk
0:03:01.5]} 7. Be3 {[%clk 0:02:59]} 7... cxd4 {[%clk 0:03:00.7]} 8. Nxd4 {[%clk
0:02:59.9]} 8... Ne5 {[%clk 0:03:00.8]} 9. Be2 {[%clk 0:02:54.8]} 9... a6 {[%clk
0:02:59.5]} 10. Nc3 {[%clk 0:02:53.6]} 10... Bb4 {[%clk 0:02:58.9]} 11. O-O
{[%clk 0:02:52.6]} 11... O-O {[%clk 0:02:55.8]} 12. Nf3 {[%clk 0:02:45.8]} 12...
Qxd1 {[%clk 0:02:51.8]} 13. Rfxd1 {[%clk 0:02:44]} 13... Nxf3+ {[%clk
0:02:50.7]} 14. Bxf3 {[%clk 0:02:43.7]} 14... Bxc3 {[%clk 0:02:50.6]} 15. bxc3
{[%clk 0:02:44.6]} 15... e5 {[%clk 0:02:51.1]} 16. Bg5 {[%clk 0:02:15.7]} 16...
e4 {[%clk 0:02:46.4]} 17. Bxf6 {[%clk 0:02:15.4]} 17... exf3 {[%clk 0:02:45.9]}
18. Be7 {[%clk 0:02:15.8]} 18... Re8 {[%clk 0:02:44.8]} 19. gxf3 {[%clk
0:02:16]} 19... Bf5 {[%clk 0:02:42.9]} 20. Bg5 {[%clk 0:01:59]} 20... Rac8
{[%clk 0:02:35.7]} 21. Re1 {[%clk 0:01:51.8]} 21... f6 {[%clk 0:02:30.1]} 22.
Bd2 {[%clk 0:01:49.6]} 22... Bxc2 {[%clk 0:02:26]} 23. Rxe8+ {[%clk 0:01:43.4]}
23... Rxe8 {[%clk 0:02:26]} 24. Be3 {[%clk 0:01:44.1]} 24... Ba4 {[%clk
0:02:22.2]} 25. Bd4 {[%clk 0:01:43]} 25... Bc6 {[%clk 0:02:22.3]} 26. Kg2 {[%clk
0:01:42.1]} 26... Re2 {[%clk 0:02:22.4]} 27. Kg3 {[%clk 0:01:39.9]} 27... Kf7
{[%clk 0:02:21.7]} 28. a3 {[%clk 0:01:39.9]} 28... Ke6 {[%clk 0:02:15.2]} 29.
Rd1 {[%clk 0:01:40.3]} 29... Ra2 {[%clk 0:02:08.9]} 30. Bc5 {[%clk 0:01:40.2]}
30... Rc2 {[%clk 0:02:07.1]} 31. Rd6+ {[%clk 0:01:38.6]} 31... Kf7 {[%clk
0:02:06.6]} 32. Bb4 {[%clk 0:01:35.3]} 32... Re2 {[%clk 0:02:00.6]} 33. f4
{[%clk 0:01:34.5]} 33... Re6 {[%clk 0:01:58.4]} 34. Rd8 {[%clk 0:01:29.9]} 34...
Re1 {[%clk 0:01:51.1]} 35. f5 {[%clk 0:01:15.3]} 35... Re8 {[%clk 0:01:14.8]}
36. Rd4 {[%clk 0:01:10.6]} 36... Re5 {[%clk 0:01:07.3]} 37. Kf4 {[%clk
0:01:10.5]} 37... Re2 {[%clk 0:01:05.2]} 38. f3 {[%clk 0:01:07.3]} 38... Rxh2
{[%clk 0:01:02]} 39. Rd8 {[%clk 0:01:06.8]} 39... g5+ {[%clk 0:00:59.8]} 40.
fxg6+ {[%clk 0:01:06.6]} 40... hxg6 {[%clk 0:00:59.8]} 41. Rf8+ {[%clk
0:00:58.9]} 41... Kg7 {[%clk 0:00:59.7]} 42. Re8 {[%clk 0:00:55.1]} 42... Rh4+
{[%clk 0:00:50.3]} 43. Kg3 {[%clk 0:00:54.8]} 43... g5 {[%clk 0:00:49.8]} 44.
Re7+ {[%clk 0:00:50.9]} 44... Kg6 {[%clk 0:00:49.5]} 45. Bd6 {[%clk 0:00:26.8]}
45... Rc4 {[%clk 0:00:45.9]} 46. Re3 {[%clk 0:00:24.9]} 46... Rh4 {[%clk
0:00:30]} 47. Be7 {[%clk 0:00:16.8]} 47... Kf7 {[%clk 0:00:12.6]} 48. Bd8 {[%clk
0:00:16.4]} 48... Rc4 {[%clk 0:00:09.3]} 49. Re7+ {[%clk 0:00:14.5]} 49... Kg6
{[%clk 0:00:09.5]} 50. Re6 {[%clk 0:00:14.4]} 50... Rf4 {[%clk 0:00:03.5]} 51.
Bc7 {[%clk 0:00:14.6]} 51... Rxf3+ {[%clk 0:00:03.4]} 52. Kh2 {[%clk 0:00:12.2]}
52... Rxc3 {[%clk 0:00:02.6]} 53. Bd6 {[%clk 0:00:11.8]} 53... Rf3 {[%clk
0:00:02.3]} 54. Re7 {[%clk 0:00:10.4]} 1-0

[Event "*** Titled Tuesday Blitz"]
[Site "Chess.com"]
[Date "2021.02.16"]
[Round "2"]
[White "crazy_but_lazy"]
[Black "RobertoJBM"]
[Result "1-0"]
[WhiteElo "2501"]
[BlackElo "2721"]
[TimeControl "180+1"]
[EndTime "10:19:57 PST"]
[Termination "crazy_but_lazy won on time"]

1. e4 {[%clk 0:03:00.9]} 1... c6 {[%clk 0:03:00]} 2. d4 {[%clk 0:02:58.6]} 2...
d5 {[%clk 0:03:00.9]} 3. exd5 {[%clk 0:02:57.6]} 3... cxd5 {[%clk 0:02:58]} 4.
Bd3 {[%clk 0:02:56.2]} 4... Nc6 {[%clk 0:02:57.2]} 5. c3 {[%clk 0:02:53.8]} 5...
g6 {[%clk 0:02:55.3]} 6. Bf4 {[%clk 0:02:52]} 6... Bh6 {[%clk 0:02:52.5]} 7. Qd2
{[%clk 0:02:40.4]} 7... Bxf4 {[%clk 0:02:46.8]} 8. Qxf4 {[%clk 0:02:41.3]} 8...
Nf6 {[%clk 0:02:43.3]} 9. Nf3 {[%clk 0:02:39.9]} 9... Bg4 {[%clk 0:02:15.7]} 10.
O-O {[%clk 0:02:35]} 10... Bxf3 {[%clk 0:02:14.2]} 11. Qxf3 {[%clk 0:02:35]}
11... O-O {[%clk 0:02:13.1]} 12. Re1 {[%clk 0:02:31.3]} 12... e6 {[%clk
0:02:09.4]} 13. Nd2 {[%clk 0:02:28.8]} 13... Kg7 {[%clk 0:02:08.7]} 14. Qf4
{[%clk 0:02:18.9]} 14... Qb8 {[%clk 0:02:06.7]} 15. Qxb8 {[%clk 0:02:12.1]}
15... Raxb8 {[%clk 0:02:07.6]} 16. a4 {[%clk 0:02:12.5]} 16... a6 {[%clk
0:01:59.5]} 17. h4 {[%clk 0:01:51.8]} 17... h5 {[%clk 0:01:58.6]} 18. Nb3 {[%clk
0:01:49.8]} 18... Nd7 {[%clk 0:01:48.6]} 19. f3 {[%clk 0:01:47.9]} 19... Kf6
{[%clk 0:01:44.7]} 20. Kf2 {[%clk 0:01:46.5]} 20... Rfc8 {[%clk 0:01:37.7]} 21.
g4 {[%clk 0:01:41.8]} 21... hxg4 {[%clk 0:01:33.6]} 22. fxg4 {[%clk 0:01:41.9]}
22... Rh8 {[%clk 0:01:34]} 23. Kg3 {[%clk 0:01:41.5]} 23... Ke7 {[%clk
0:01:27.8]} 24. Re2 {[%clk 0:01:33.6]} 24... Rh6 {[%clk 0:01:22.2]} 25. Nd2
{[%clk 0:01:28.8]} 25... Kd6 {[%clk 0:01:13.8]} 26. Nf3 {[%clk 0:01:28.4]} 26...
Re8 {[%clk 0:01:10.7]} 27. Rd1 {[%clk 0:01:20.5]} 27... Re7 {[%clk 0:01:08.6]}
28. b3 {[%clk 0:01:16.2]} 28... Na5 {[%clk 0:01:04.1]} 29. Rb1 {[%clk
0:00:52.3]} 29... Rh8 {[%clk 0:01:03.7]} 30. c4 {[%clk 0:00:52.3]} 30... dxc4
{[%clk 0:00:47.8]} 31. bxc4 {[%clk 0:00:52.5]} 31... Nc6 {[%clk 0:00:47.6]} 32.
c5+ {[%clk 0:00:48.1]} 32... Kc7 {[%clk 0:00:47.3]} 33. Be4 {[%clk 0:00:30]}
33... Na5 {[%clk 0:00:30.6]} 34. Reb2 {[%clk 0:00:20.7]} 34... Rb8 {[%clk
0:00:30.1]} 35. Rb4 {[%clk 0:00:19.6]} 35... f5 {[%clk 0:00:28.7]} 36. Bd3
{[%clk 0:00:14.3]} 36... fxg4 {[%clk 0:00:26]} 37. Kxg4 {[%clk 0:00:13.5]} 37...
Nf6+ {[%clk 0:00:26.9]} 38. Kg5 {[%clk 0:00:11]} 38... Nd5 {[%clk 0:00:27.8]}
39. R4b2 {[%clk 0:00:07.9]} 39... Rf8 {[%clk 0:00:26.4]} 40. Be4 {[%clk
0:00:06.7]} 40... Nc3 {[%clk 0:00:19.8]} 41. Rxb7+ {[%clk 0:00:05.6]} 41... Nxb7
{[%clk 0:00:16.9]} 42. Rxb7+ {[%clk 0:00:06.5]} 42... Kd8 {[%clk 0:00:17.5]} 43.
Rb8+ {[%clk 0:00:06.5]} 43... Kd7 {[%clk 0:00:15.6]} 44. Rxf8 {[%clk 0:00:07.4]}
44... Nxe4+ {[%clk 0:00:15.6]} 45. Kxg6 {[%clk 0:00:08]} 45... Kc7 {[%clk
0:00:10.6]} 46. Ne5 {[%clk 0:00:07.4]} 46... Ng3 {[%clk 0:00:10.7]} 47. Rf7
{[%clk 0:00:06.9]} 47... Rxf7 {[%clk 0:00:10.3]} 48. Kxf7 {[%clk 0:00:07.8]}
48... Nf5 {[%clk 0:00:11.2]} 49. h5 {[%clk 0:00:06.5]} 49... Nxd4 {[%clk
0:00:08]} 50. h6 {[%clk 0:00:07]} 1-0

[Event "*** Titled Tuesday Blitz"]
[Site "Chess.com"]
[Date "2021.02.16"]
[Round "2"]
[White "Unknown_IM"]
[Black "Goryachkina"]
[Result "0-1"]
[WhiteElo "2371"]
[BlackElo "2662"]
[TimeControl "180+1"]
[EndTime "10:19:57 PST"]
[Termination "Goryachkina won by resignation"]

1. e4 {[%clk 0:03:00.9]} 1... c5 {[%clk 0:02:59.3]} 2. Nf3 {[%clk 0:03:00.4]}
2... Nc6 {[%clk 0:02:59]} 3. Bb5 {[%clk 0:02:59.3]} 3... g6 {[%clk 0:02:58.6]}
4. Bxc6 {[%clk 0:02:58.8]} 4... dxc6 {[%clk 0:02:57.3]} 5. O-O {[%clk
0:02:58.4]} 5... Bg7 {[%clk 0:02:56.9]} 6. h3 {[%clk 0:02:57]} 6... Nf6 {[%clk
0:02:53]} 7. d3 {[%clk 0:02:56.8]} 7... Nd7 {[%clk 0:02:46.8]} 8. Nc3 {[%clk
0:02:56.6]} 8... e5 {[%clk 0:02:45.8]} 9. Be3 {[%clk 0:02:56.4]} 9... b6 {[%clk
0:02:41]} 10. Qc1 {[%clk 0:02:55.9]} 10... h6 {[%clk 0:02:40.2]} 11. a3 {[%clk
0:02:49.8]} 11... Nf8 {[%clk 0:02:26.9]} 12. b4 {[%clk 0:02:48.8]} 12... cxb4
{[%clk 0:02:24.8]} 13. axb4 {[%clk 0:02:48.7]} 13... Ne6 {[%clk 0:02:24.5]} 14.
b5 {[%clk 0:02:48.8]} 14... Bd7 {[%clk 0:02:14]} 15. bxc6 {[%clk 0:02:10.2]}
15... Bxc6 {[%clk 0:02:13.8]} 16. Qa3 {[%clk 0:02:09.4]} 16... g5 {[%clk
0:01:59.8]} 17. Rfb1 {[%clk 0:01:20.5]} 17... Qd7 {[%clk 0:00:55]} 18. Ne2
{[%clk 0:01:02.3]} 18... f6 {[%clk 0:00:19.2]} 19. Rd1 {[%clk 0:00:38.8]} 19...
Kf7 {[%clk 0:00:17.4]} 20. c4 {[%clk 0:00:38.5]} 20... Qe7 {[%clk 0:00:13.7]}
21. Nc3 {[%clk 0:00:29.5]} 21... Qxa3 {[%clk 0:00:12.8]} 22. Rxa3 {[%clk
0:00:30]} 22... Nf4 {[%clk 0:00:12.2]} 23. Nd5 {[%clk 0:00:23.1]} 23... Rhd8
{[%clk 0:00:11.7]} 24. Rda1 {[%clk 0:00:21.6]} 24... Bxd5 {[%clk 0:00:11.1]} 25.
exd5 {[%clk 0:00:20.4]} 25... Rd7 {[%clk 0:00:11.3]} 26. Bxb6 {[%clk 0:00:19]}
26... a6 {[%clk 0:00:10.4]} 27. Ne1 {[%clk 0:00:15.8]} 27... Bf8 {[%clk
0:00:10.5]} 28. Rxa6 {[%clk 0:00:15.6]} 28... Rxa6 {[%clk 0:00:10.4]} 29. Rxa6
{[%clk 0:00:16.5]} 29... f5 {[%clk 0:00:09.7]} 30. Be3 {[%clk 0:00:15.4]} 30...
e4 {[%clk 0:00:08.8]} 31. Bxf4 {[%clk 0:00:13.4]} 31... gxf4 {[%clk 0:00:09]}
32. Kf1 {[%clk 0:00:13.6]} 32... Bb4 {[%clk 0:00:08]} 33. Ke2 {[%clk 0:00:13.6]}
33... Bxe1 {[%clk 0:00:05.8]} 34. Kxe1 {[%clk 0:00:14.5]} 34... Rb7 {[%clk
0:00:06.2]} 35. dxe4 {[%clk 0:00:13.9]} 35... fxe4 {[%clk 0:00:06.6]} 36. Ra2
{[%clk 0:00:12.9]} 36... Rb1+ {[%clk 0:00:05.8]} 37. Ke2 {[%clk 0:00:13.2]}
37... Rc1 {[%clk 0:00:05.7]} 38. Ra7+ {[%clk 0:00:10.5]} 38... Kf6 {[%clk
0:00:05.8]} 39. Ra6+ {[%clk 0:00:11.1]} 39... Ke5 {[%clk 0:00:05.7]} 40. Rxh6
{[%clk 0:00:11.1]} 40... Rxc4 {[%clk 0:00:05.3]} 41. Rh5+ {[%clk 0:00:11.1]}
41... Kd4 {[%clk 0:00:05.4]} 42. Rf5 {[%clk 0:00:08.4]} 42... Rc2+ {[%clk
0:00:05.1]} 43. Kd1 {[%clk 0:00:08.7]} 43... Rxf2 {[%clk 0:00:04.9]} 44. d6
{[%clk 0:00:08.8]} 44... Ke3 {[%clk 0:00:04.4]} 45. d7 {[%clk 0:00:08.8]} 45...
Rd2+ {[%clk 0:00:04.6]} 46. Ke1 {[%clk 0:00:09.3]} 46... Rxd7 {[%clk 0:00:05.5]}
47. h4 {[%clk 0:00:09.9]} 47... Ra7 {[%clk 0:00:05.4]} 48. Kd1 {[%clk
0:00:09.5]} 48... Ra1+ {[%clk 0:00:05.4]} 49. Kc2 {[%clk 0:00:10]} 49... Ra2+
{[%clk 0:00:06.3]} 50. Kc3 {[%clk 0:00:10.5]} 50... Rxg2 {[%clk 0:00:06.5]} 51.
h5 {[%clk 0:00:11.1]} 51... Rh2 {[%clk 0:00:06.9]} 52. Kc4 {[%clk 0:00:10.7]}
52... f3 {[%clk 0:00:07.3]} 53. Kd5 {[%clk 0:00:11.1]} 53... f2 {[%clk
0:00:07.1]} 54. Ke5 {[%clk 0:00:10.3]} 54... Rxh5 {[%clk 0:00:07.1]} 0-1

[Event "*** Titled Tuesday Blitz"]
[Site "Chess.com"]
[Date "2021.02.16"]
[Round "2"]
[White "Sokoloco"]
[Black "Harry_Rakkel"]
[Result "1-0"]
[WhiteElo "2472"]
[BlackElo "2682"]
[TimeControl "180+1"]
[EndTime "10:19:59 PST"]
[Termination "Sokoloco won on time"]

1. b3 {[%clk 0:03:00.9]} 1... e5 {[%clk 0:02:58.7]} 2. Bb2 {[%clk 0:03:01.4]}
2... d6 {[%clk 0:02:58.9]} 3. e3 {[%clk 0:03:01.8]} 3... Nd7 {[%clk 0:02:57.9]}
4. d4 {[%clk 0:02:58.8]} 4... Ngf6 {[%clk 0:02:56.1]} 5. Nf3 {[%clk 0:02:57.1]}
5... Qe7 {[%clk 0:02:53.4]} 6. c4 {[%clk 0:02:53.2]} 6... g6 {[%clk 0:02:50.1]}
7. Be2 {[%clk 0:02:42.8]} 7... Bg7 {[%clk 0:02:49.1]} 8. Nc3 {[%clk 0:02:41]}
8... O-O {[%clk 0:02:33.6]} 9. O-O {[%clk 0:02:40.7]} 9... e4 {[%clk 0:02:30.1]}
10. Nd2 {[%clk 0:02:39.8]} 10... Re8 {[%clk 0:02:29.7]} 11. Qc2 {[%clk
0:02:30.1]} 11... h5 {[%clk 0:02:23.4]} 12. Rae1 {[%clk 0:02:19.8]} 12... c5
{[%clk 0:01:35]} 13. d5 {[%clk 0:01:27.1]} 13... a6 {[%clk 0:01:26.1]} 14. a4
{[%clk 0:01:10.9]} 14... Bh6 {[%clk 0:01:19.7]} 15. Bd1 {[%clk 0:01:06.3]} 15...
Nf8 {[%clk 0:01:14]} 16. f4 {[%clk 0:00:25]} 16... exf3 {[%clk 0:01:10.7]} 17.
Bxf3 {[%clk 0:00:18.1]} 17... N8h7 {[%clk 0:01:01.6]} 18. e4 {[%clk 0:00:17.2]}
18... Ng4 {[%clk 0:00:59.5]} 19. Nd1 {[%clk 0:00:14.1]} 19... Qh4 {[%clk
0:00:51.2]} 20. Bxg4 {[%clk 0:00:12.8]} 20... hxg4 {[%clk 0:00:51.8]} 21. Qc3
{[%clk 0:00:13.1]} 21... Re5 {[%clk 0:00:48.5]} 22. Ne3 {[%clk 0:00:08.2]} 22...
Bd7 {[%clk 0:00:35.5]} 23. g3 {[%clk 0:00:08.3]} 23... Qh3 {[%clk 0:00:31.5]}
24. Rf2 {[%clk 0:00:08.3]} 24... Rae8 {[%clk 0:00:30]} 25. Ng2 {[%clk
0:00:08.5]} 25... g5 {[%clk 0:00:23.3]} 26. Ref1 {[%clk 0:00:08.1]} 26... R8e7
{[%clk 0:00:22.8]} 27. Ne3 {[%clk 0:00:05]} 27... Bg7 {[%clk 0:00:20.6]} 28. Nf5
{[%clk 0:00:04.8]} 28... Bxf5 {[%clk 0:00:20.1]} 29. Rxf5 {[%clk 0:00:05.4]}
29... Qh6 {[%clk 0:00:18.4]} 30. Rxe5 {[%clk 0:00:02.5]} 30... Rxe5 {[%clk
0:00:16.6]} 31. Qe3 {[%clk 0:00:02.4]} 31... Re7 {[%clk 0:00:15.7]} 32. Bxg7
{[%clk 0:00:03.1]} 32... Qxg7 {[%clk 0:00:16.4]} 33. Qf3 {[%clk 0:00:03.7]}
33... Qd4+ {[%clk 0:00:15.4]} 34. Qf2 {[%clk 0:00:03.7]} 34... Qd3 {[%clk
0:00:15]} 35. Qf5 {[%clk 0:00:02.7]} 35... Qe3+ {[%clk 0:00:12.3]} 36. Qf2
{[%clk 0:00:02.7]} 36... Qd3 {[%clk 0:00:12.3]} 37. Kg2 {[%clk 0:00:03.1]} 37...
Nf8 {[%clk 0:00:11.5]} 38. Re1 {[%clk 0:00:03.4]} 38... Ng6 {[%clk 0:00:11.3]}
39. Re3 {[%clk 0:00:03.4]} 39... Qd4 {[%clk 0:00:11.9]} 40. Re2 {[%clk
0:00:03.7]} 40... Qc3 {[%clk 0:00:10.1]} 41. Qe3 {[%clk 0:00:03.9]} 41... Qh8
{[%clk 0:00:08.2]} 42. Qxg5 {[%clk 0:00:04]} 42... Qc3 {[%clk 0:00:05.9]} 43.
Qe3 {[%clk 0:00:03.8]} 43... Qc1 {[%clk 0:00:05.2]} 44. Nf1 {[%clk 0:00:03.2]}
44... Qxe3 {[%clk 0:00:03.6]} 45. Rxe3 {[%clk 0:00:04.1]} 45... Ne5 {[%clk
0:00:03.8]} 46. Nd2 {[%clk 0:00:04.8]} 46... b5 {[%clk 0:00:02.2]} 47. cxb5
{[%clk 0:00:04.4]} 47... axb5 {[%clk 0:00:02.9]} 48. axb5 {[%clk 0:00:05.3]}
48... Rb7 {[%clk 0:00:03.1]} 49. Nc4 {[%clk 0:00:06.2]} 49... Rxb5 {[%clk
0:00:03.2]} 50. Nxd6 {[%clk 0:00:06.5]} 50... Rb4 {[%clk 0:00:03.4]} 51. Nf5
{[%clk 0:00:05.2]} 51... Nf3 {[%clk 0:00:02.4]} 52. Nh6+ {[%clk 0:00:05.1]}
52... Kg7 {[%clk 0:00:02.3]} 53. Nxg4 {[%clk 0:00:06]} 1-0

[Event "*** Titled Tuesday Blitz"]
[Site "Chess.com"]
[Date "2021.02.16"]
[Round "2"]
[White "KubaGepard"]
[Black "elcandado"]
[Result "0-1"]
[WhiteElo "2387"]
[BlackElo "2665"]
[TimeControl "180+1"]
[EndTime "10:19:59 PST"]
[Termination "elcandado won by resignation"]

1. d4 {[%clk 0:03:00.9]} 1... Nf6 {[%clk 0:02:58.9]} 2. Nf3 {[%clk 0:02:59.6]}
2... d5 {[%clk 0:02:58.2]} 3. Bf4 {[%clk 0:02:56.6]} 3... e6 {[%clk 0:02:57.8]}
4. e3 {[%clk 0:02:56]} 4... Bd6 {[%clk 0:02:55.8]} 5. c3 {[%clk 0:02:56.3]} 5...
O-O {[%clk 0:02:53.9]} 6. Bg3 {[%clk 0:02:55.8]} 6... Qe7 {[%clk 0:02:53.2]} 7.
Nbd2 {[%clk 0:02:53.6]} 7... Nc6 {[%clk 0:02:52.7]} 8. Bb5 {[%clk 0:02:49.5]}
8... Nd7 {[%clk 0:02:50.8]} 9. O-O {[%clk 0:02:41.8]} 9... e5 {[%clk 0:02:33.4]}
10. Bxc6 {[%clk 0:02:41.3]} 10... bxc6 {[%clk 0:02:34.3]} 11. dxe5 {[%clk
0:02:41.7]} 11... Nxe5 {[%clk 0:02:33.8]} 12. Nxe5 {[%clk 0:02:41.9]} 12... Bxe5
{[%clk 0:02:33.9]} 13. Bxe5 {[%clk 0:02:33.1]} 13... Qxe5 {[%clk 0:02:34.8]} 14.
Nf3 {[%clk 0:02:33.4]} 14... Qe7 {[%clk 0:02:24.1]} 15. Rc1 {[%clk 0:02:21.1]}
15... a5 {[%clk 0:02:17.3]} 16. c4 {[%clk 0:02:15.1]} 16... Rd8 {[%clk
0:01:56.9]} 17. Qc2 {[%clk 0:02:04.3]} 17... dxc4 {[%clk 0:01:49.8]} 18. Nd4
{[%clk 0:01:56.4]} 18... Qf6 {[%clk 0:01:40.8]} 19. Rfd1 {[%clk 0:01:42.4]}
19... Ba6 {[%clk 0:01:37.4]} 20. Qe4 {[%clk 0:01:32.4]} 20... Bb5 {[%clk
0:01:29.3]} 21. b3 {[%clk 0:01:22.5]} 21... cxb3 {[%clk 0:01:21.3]} 22. axb3
{[%clk 0:01:17.2]} 22... Re8 {[%clk 0:01:07.9]} 23. Qf3 {[%clk 0:01:09.1]} 23...
Qxf3 {[%clk 0:01:01.7]} 24. gxf3 {[%clk 0:01:10]} 24... a4 {[%clk 0:00:59.5]}
25. bxa4 {[%clk 0:01:07.2]} 25... Bxa4 {[%clk 0:00:57.5]} 26. Rd3 {[%clk
0:01:04.5]} 26... g6 {[%clk 0:00:39.5]} 27. Rdc3 {[%clk 0:01:00.3]} 27... Ra6
{[%clk 0:00:35.5]} 28. Nxc6 {[%clk 0:00:57.6]} 28... Bxc6 {[%clk 0:00:34.6]} 29.
Rxc6 {[%clk 0:00:57.8]} 29... Rxc6 {[%clk 0:00:34.4]} 30. Rxc6 {[%clk
0:00:58.7]} 30... Rc8 {[%clk 0:00:32.2]} 31. f4 {[%clk 0:00:56.5]} 31... Kf8
{[%clk 0:00:32.5]} 32. f5 {[%clk 0:00:49]} 32... Ke7 {[%clk 0:00:19.7]} 33. fxg6
{[%clk 0:00:46.5]} 33... hxg6 {[%clk 0:00:20.6]} 34. Kg2 {[%clk 0:00:46.6]}
34... Kd7 {[%clk 0:00:20.6]} 35. Rc4 {[%clk 0:00:46.9]} 35... c5 {[%clk
0:00:19.3]} 36. Kf3 {[%clk 0:00:47.2]} 36... Kd6 {[%clk 0:00:19.3]} 37. Ke2
{[%clk 0:00:41.7]} 37... Rh8 {[%clk 0:00:18.5]} 38. h4 {[%clk 0:00:41.7]} 38...
Kd5 {[%clk 0:00:18]} 39. Ra4 {[%clk 0:00:41.5]} 39... Rb8 {[%clk 0:00:14.5]} 40.
Rf4 {[%clk 0:00:38]} 40... Ke6 {[%clk 0:00:09.8]} 41. Kd3 {[%clk 0:00:37.3]}
41... Rb2 {[%clk 0:00:02.9]} 42. Kc4 {[%clk 0:00:29.5]} 42... Rc2+ {[%clk
0:00:03.1]} 43. Kb5 {[%clk 0:00:29.7]} 43... Rc1 {[%clk 0:00:03.7]} 44. Re4+
{[%clk 0:00:25.1]} 44... Kd5 {[%clk 0:00:02.8]} 45. Rf4 {[%clk 0:00:25.4]} 45...
Rb1+ {[%clk 0:00:03.2]} 46. Ka4 {[%clk 0:00:24.5]} 46... f5 {[%clk 0:00:04.1]}
47. h5 {[%clk 0:00:24.4]} 47... gxh5 {[%clk 0:00:04.3]} 48. Rxf5+ {[%clk
0:00:24.6]} 48... Kc4 {[%clk 0:00:04.8]} 49. Rf4+ {[%clk 0:00:22.4]} 49... Kc3
{[%clk 0:00:04.8]} 50. e4 {[%clk 0:00:22.4]} 50... c4 {[%clk 0:00:05.1]} 51. e5
{[%clk 0:00:22.2]} 51... Re1 {[%clk 0:00:05.6]} 52. Rf5 {[%clk 0:00:21.5]} 52...
Kd3 {[%clk 0:00:05.1]} 53. Rxh5 {[%clk 0:00:20.8]} 53... c3 {[%clk 0:00:04.9]}
54. Rh3+ {[%clk 0:00:20.6]} 54... Kd2 {[%clk 0:00:05.1]} 55. f4 {[%clk
0:00:18.8]} 55... c2 {[%clk 0:00:05.2]} 56. Rh2+ {[%clk 0:00:19.3]} 56... Kd1
{[%clk 0:00:05.7]} 57. Rxc2 {[%clk 0:00:19.4]} 57... Kxc2 {[%clk 0:00:05.8]} 58.
Kb5 {[%clk 0:00:19.2]} 58... Kd3 {[%clk 0:00:05.8]} 59. Kc6 {[%clk 0:00:19.7]}
59... Ke4 {[%clk 0:00:06.2]} 60. e6 {[%clk 0:00:19.6]} 60... Kf5 {[%clk
0:00:06.1]} 61. Kd7 {[%clk 0:00:19.9]} 61... Rxe6 {[%clk 0:00:05.8]} 0-1